{"text_format":"3","workbook":"xlsx","n_sheets":2,"sheets":["Initial","DNAPL"],"not_rendered":{"defined_names":1},"read":"whole","date_system":"1900"}

{"sheet":"Initial","index":0,"n_rows":122,"n_cols":39,"rows_kept":122,"merged":[[0,0,2,0],[0,1,2,1],[0,2,1,3],[0,4,1,5],[0,6,1,16],[0,17,1,24],[0,25,0,34],[1,26,1,29],[1,30,1,34]]}
["Tool","Data Quality","Sub\nsurface",null,"Zones",null,"Geology",{"$nulls":10},"Hydrogeology",{"$nulls":7},"Chemistry"]
[{"$nulls":25},"Soil Gas","Groundwater",{"$nulls":3},"Solid Media"]
[null,null,"Bedrock","Unconsolidated","Unsaturated","Saturated","Lithology","Lithology Contacts","Porosity","Permeability","Dual Permeability","Faults","Fractures","Fracture Density","Fracture sets","Rock Competence","Mineralogy","Open Hole Flow","Ambient Flow","Groundwater Age","Fracture Aperture","Fracture Connectivity","Hydraulic Conductivity","Hydraulic Head","Borehole Condition","Contaminant Concentration","Geochemistry","Microbial Community","NAPL Presence","Contaminant Concentration","Geochemistry","Foc","NAPL Presence","Contaminant Concentration","Microbial Community"]
["Geophysics",{"$nulls":37},"https://projects.itrcweb.org/DNAPL-ISC_tools-selection/#Appendix_D_Tools_Descriptions.htm#Geophysi"]
["Surface Geophysics",{"$nulls":37},"https://projects.itrcweb.org/DNAPL-ISC_tools-selection/#Appendix_D_Tools_Descriptions.htm#Surface_Geophysics"]
["Ground Penetrating Radar (GPR)","Q - QL","✓","✓","✓","✓",{"$nulls":32},"https://projects.itrcweb.org/DNAPL-ISC_tools-selection/#Appendix_D_Tools_Descriptions.htm#Ground_Penetrating_Radar"]
["High Resolution Seismic Reflection (2D or 3D) ","Q - QL","✓","✓",null,"✓",{"$nulls":32},"https://projects.itrcweb.org/DNAPL-ISC_tools-selection/#Appendix_D_Tools_Descriptions.htm#High_Resolution_Seismic_Reflection"]
["Seismic Refraction","Q - QL","✓","✓","✓","✓",{"$nulls":32},"https://projects.itrcweb.org/DNAPL-ISC_tools-selection/#Appendix_D_Tools_Descriptions.htm#Seismic_Refraction"]
["Multi-Channel Analyses of Surface Waves (MASW)","Q - QL","✓","✓","✓","✓",{"$nulls":32},"https://projects.itrcweb.org/DNAPL-ISC_tools-selection/#Appendix_D_Tools_Descriptions.htm#Multi-channel_Analyses_of_Surface_Wave"]
["Electrical Resistivity Tomography (ERT) ","QL - SQ","✓","✓","✓","✓",{"$nulls":32},"https://projects.itrcweb.org/DNAPL-ISC_tools-selection/#Appendix_D_Tools_Descriptions.htm#Electrical_Resistivity_Tomography"]
["Very Low Frequency (VLF)","QL","✓","✓","✓","✓",{"$nulls":32},"https://projects.itrcweb.org/DNAPL-ISC_tools-selection/#Appendix_D_Tools_Descriptions.htm#Very_Low_Frequency"]
["ElectroMagnetic (EM) Conductivity","QL","✓","✓","✓","✓",{"$nulls":32},"https://projects.itrcweb.org/DNAPL-ISC_tools-selection/#Appendix_D_Tools_Descriptions.htm#Electromagnetic_Conductivity"]
["Downhole Testing",{"$nulls":37},"https://projects.itrcweb.org/DNAPL-ISC_tools-selection/#Appendix_D_Tools_Descriptions.htm#Downhole_Geophysics"]
["Magnetometric Resistivity","QL","✓","✓",null,"✓",{"$nulls":32},"https://projects.itrcweb.org/DNAPL-ISC_tools-selection/#Appendix_D_Tools_Descriptions.htm#Magnetometric_Resistivity"]
["Induction Resistivity (Conductivity Logging)","Q - QL","✓","✓","✓","✓",{"$nulls":32},"https://projects.itrcweb.org/DNAPL-ISC_tools-selection/#Appendix_D_Tools_Descriptions.htm#Induction_Resistivity"]
["Resistivity (Elog)","QL - SQ","✓",null,null,"✓",{"$nulls":32},"https://projects.itrcweb.org/DNAPL-ISC_tools-selection/#Appendix_D_Tools_Descriptions.htm#Resistivity"]
["GPR Cross-Well Tomography","Q - QL","✓","✓","✓","✓",{"$nulls":32},"https://projects.itrcweb.org/DNAPL-ISC_tools-selection/#Appendix_D_Tools_Descriptions.htm#GPR_Cross_Well_Tomography"]
["Optical Televiewer","Q - QL","✓","✓","✓","✓",{"$nulls":32},"https://projects.itrcweb.org/DNAPL-ISC_tools-selection/#Appendix_D_Tools_Descriptions.htm#Optical_Televiewer"]
["Acoustic Televiewer","Q - QL","✓",null,null,"✓",{"$nulls":32},"https://projects.itrcweb.org/DNAPL-ISC_tools-selection/#Appendix_D_Tools_Descriptions.htm#Acoustic_Televiewer"]
["Natural Gamma Log","Q - QL","✓","✓","✓","✓",{"$nulls":32},"https://projects.itrcweb.org/DNAPL-ISC_tools-selection/#Appendix_D_Tools_Descriptions.htm#Natural_Gamma_Logging"]
["Neutron (porosity) Logging","Q - QL","✓","✓",null,"✓",{"$nulls":32},"https://projects.itrcweb.org/DNAPL-ISC_tools-selection/#Appendix_D_Tools_Descriptions.htm#Neutron_Porosity_Logging"]
["Nuclear Magnetic Resonance Logging","Q - QL","✓","✓","✓","✓",{"$nulls":32},"https://projects.itrcweb.org/DNAPL-ISC_tools-selection/#Appendix_D_Tools_Descriptions.htm#Nuclear_Magnetic_Resonance_Logging"]
["Video Log","QL - SQ","✓","✓","✓","✓",{"$nulls":32},"https://projects.itrcweb.org/DNAPL-ISC_tools-selection/#Appendix_D_Tools_Descriptions.htm#Video_Log"]
["Caliper Log","Q - QL","✓","✓","✓","✓",{"$nulls":32},"https://projects.itrcweb.org/DNAPL-ISC_tools-selection/#Appendix_D_Tools_Descriptions.htm#Caliper_Log"]
["Temperature Profiling","Q - QL","✓","✓",null,"✓",{"$nulls":32},"https://projects.itrcweb.org/DNAPL-ISC_tools-selection/#Appendix_D_Tools_Descriptions.htm#Temperature_Profiling"]
["Full Wave Form Seismic","Q - QL","✓",null,null,"✓",{"$nulls":32},"https://projects.itrcweb.org/DNAPL-ISC_tools-selection/#Appendix_D_Tools_Descriptions.htm#Full_Wave_Form_Seismic"]
["Hydraulic Testing",{"$nulls":37},"https://projects.itrcweb.org/DNAPL-ISC_tools-selection/#Appendix_D_Tools_Descriptions.htm#Hydrauli"]
["Single well tests",{"$nulls":37},"https://projects.itrcweb.org/DNAPL-ISC_tools-selection/#Appendix_D_Tools_Descriptions.htm#Single_Well_Tests"]
["Packer Testing","Q - SQ","✓","✓",null,"✓",{"$nulls":32},"https://projects.itrcweb.org/DNAPL-ISC_tools-selection/#Appendix_D_Tools_Descriptions.htm#Packer_Testing"]
["FLUTe™  Profiling","Q - SQ","✓","✓",null,"✓",{"$nulls":32},"https://projects.itrcweb.org/DNAPL-ISC_tools-selection/#Appendix_D_Tools_Descriptions.htm#FLUTe_Profiling"]
["Borehole Dilution","Q - SQ","✓","✓",null,"✓",{"$nulls":32},"https://projects.itrcweb.org/DNAPL-ISC_tools-selection/#Appendix_D_Tools_Descriptions.htm#Borehole_Dilution_Tests"]
["Flow Metering","Q - SQ","✓","✓",null,"✓",{"$nulls":32},"https://projects.itrcweb.org/DNAPL-ISC_tools-selection/#Appendix_D_Tools_Descriptions.htm#Flow_Meeting"]
["Partitioning Interwell Tracer Test (PITT)","Q - SQ","✓","✓","✓","✓",{"$nulls":32},"https://projects.itrcweb.org/DNAPL-ISC_tools-selection/#Appendix_D_Tools_Descriptions.htm#Partitioning_Interwell_Tracer_Test"]
["Pumping and Recovery Tests","Q - SQ","✓","✓",null,"✓",{"$nulls":32},"https://projects.itrcweb.org/DNAPL-ISC_tools-selection/#Appendix_D_Tools_Descriptions.htm#Pumping_and_Recovery_Tests"]
["Slug Tests ","Q - SQ","✓","✓",null,"✓",{"$nulls":32},"https://projects.itrcweb.org/DNAPL-ISC_tools-selection/#Appendix_D_Tools_Descriptions.htm#Slug_Tests"]
["Constant Head Step Test","Q - SQ","✓","✓",null,"✓",{"$nulls":32},"https://projects.itrcweb.org/DNAPL-ISC_tools-selection/#Appendix_D_Tools_Descriptions.htm#Constant_Head_Step_Tests"]
["Cross Borehole Testing",{"$nulls":37},"https://projects.itrcweb.org/DNAPL-ISC_tools-selection/#Appendix_D_Tools_Descriptions.htm#Cross_Borehole_Testing_header"]
["Tracer testing","Q - SQ","✓","✓",null,"✓",{"$nulls":32},"https://projects.itrcweb.org/DNAPL-ISC_tools-selection/#Appendix_D_Tools_Descriptions.htm#Tracer_Testing"]
["Hydraulic Tomography","Q - SQ","✓","✓",null,"✓",{"$nulls":32},"https://projects.itrcweb.org/DNAPL-ISC_tools-selection/#Appendix_D_Tools_Descriptions.htm#High_Resolution_3D"]
["Flow Metering","Q - SQ","✓","✓",null,"✓",{"$nulls":32},"https://projects.itrcweb.org/DNAPL-ISC_tools-selection/#Appendix_D_Tools_Descriptions.htm#Flow_Meeting"]
["Pumping and Recovery Tests","Q - SQ","✓","✓",null,"✓",{"$nulls":32},"https://projects.itrcweb.org/DNAPL-ISC_tools-selection/#Appendix_D_Tools_Descriptions.htm#Pumping_and_Recovery_Tests"]
["Slug Tests ","Q - SQ","✓","✓",null,"✓",{"$nulls":32},"https://projects.itrcweb.org/DNAPL-ISC_tools-selection/#Appendix_D_Tools_Descriptions.htm#Slug_Tests__hydraulic_testing"]
["Vapor and Soil Gas Sampling",{"$nulls":37},"https://projects.itrcweb.org/DNAPL-ISC_tools-selection/#Appendix_D_Tools_Descriptions.htm#Discrete"]
["Passive soil gas surveys","SQ","✓","✓","✓",{"$nulls":33},"https://projects.itrcweb.org/DNAPL-ISC_tools-selection/#Appendix_D_Tools_Descriptions.htm#Passive_Soil_Gas_Sampling"]
["Active soil gas surveys","Q - SQ","✓","✓","✓",{"$nulls":33},"https://projects.itrcweb.org/DNAPL-ISC_tools-selection/#Appendix_D_Tools_Descriptions.htm#Active_Soil_Gas_Sampling"]
["Solid Media Sampling and Analysis Methods",{"$nulls":37},"https://projects.itrcweb.org/DNAPL-ISC_tools-selection/#Appendix_D_Tools_Descriptions.htm#Solid"]
["Solid Media Sampling Methods",{"$nulls":37},"https://projects.itrcweb.org/DNAPL-ISC_tools-selection/#Appendix_D_Tools_Descriptions.htm#Solid_Media_Sampling_Methods"]
["Split Spoon Sampler","Q - QL",null,"✓","✓","✓",{"$nulls":32},"https://projects.itrcweb.org/DNAPL-ISC_tools-selection/#Appendix_D_Tools_Descriptions.htm#Split_Spoon_Samplers"]
["Single Tube Solid Barrel Sampler","Q - QL",null,"✓","✓","✓",{"$nulls":32},"https://projects.itrcweb.org/DNAPL-ISC_tools-selection/#Appendix_D_Tools_Descriptions.htm#Single-tube_Solid_Barrel_Samplers"]
["Dual Tube Sampler","Q - QL",null,"✓","✓","✓",{"$nulls":32},"https://projects.itrcweb.org/DNAPL-ISC_tools-selection/#Appendix_D_Tools_Descriptions.htm#Dual-Tube_Samplers"]
["Rock Coring","Q - QL","✓",null,null,"✓",{"$nulls":32},"https://projects.itrcweb.org/DNAPL-ISC_tools-selection/#Appendix_D_Tools_Descriptions.htm#Rock_Coring"]
["Solid Media Evaluation and Testing Methods",{"$nulls":37},"https://projects.itrcweb.org/DNAPL-ISC_tools-selection/#Appendix_D_Tools_Descriptions.htm#Solid_Media_Evaluation_and_Testing_Methods"]
["Core Logging","Q - QL","✓","✓","✓","✓",{"$nulls":32},"https://projects.itrcweb.org/DNAPL-ISC_tools-selection/#Appendix_D_Tools_Descriptions.htm#Core_Logging"]
["Percent Recovery/Rock Quality Designation","Q - QL","✓","✓","✓","✓",{"$nulls":32},"https://projects.itrcweb.org/DNAPL-ISC_tools-selection/#Appendix_D_Tools_Descriptions.htm#Percent_Recovery_Rock_Quality_Designation"]
["Contaminant Analysis","Q - QL","✓","✓","✓","✓",{"$nulls":32},"https://projects.itrcweb.org/DNAPL-ISC_tools-selection/#Appendix_D_Tools_Descriptions.htm#Contaminant_Analysis"]
["Geochemical Composition and Mineralogy","Q - QL","✓","✓","✓","✓",{"$nulls":32},"https://projects.itrcweb.org/DNAPL-ISC_tools-selection/#Appendix_D_Tools_Descriptions.htm#Geochemical_Composition_and_Mineralogy"]
["Physical Properties","Q - QL","✓","✓","✓","✓",{"$nulls":32},"https://projects.itrcweb.org/DNAPL-ISC_tools-selection/#Appendix_D_Tools_Descriptions.htm#Physical_Properties"]
["Molecular/Microbial Diagnostics","QL - SQ","✓","✓",null,"✓",{"$nulls":32},"https://projects.itrcweb.org/DNAPL-ISC_tools-selection/#Appendix_D_Tools_Descriptions.htm#Microbial_and_Molecular_Diagnostics"]
["Direct Push Logging (In-Situ)",{"$nulls":37},"https://projects.itrcweb.org/DNAPL-ISC_tools-selection/#Appendix_D_Tools_Descriptions.htm#Direct-P"]
["Hydraulic Profiling Tool (HPT)","QL - SQ",null,"✓","✓","✓",{"$nulls":32},"https://projects.itrcweb.org/DNAPL-ISC_tools-selection/#Appendix_D_Tools_Descriptions.htm#Hydraulic_Profiling_Tool"]
["Electrical Conductivity (EC) Logging ","QL",null,"✓","✓","✓",{"$nulls":32},"https://projects.itrcweb.org/DNAPL-ISC_tools-selection/#Appendix_D_Tools_Descriptions.htm#Electrical_Conductivity_Logging"]
["Cone Penetrometer Testing (CPT &CPTu)","Q - SQ",null,"✓","✓","✓",{"$nulls":32},"https://projects.itrcweb.org/DNAPL-ISC_tools-selection/#Appendix_D_Tools_Descriptions.htm#Cone_Penetrometer"]
["Laser Induced Fluoresence (LIF)","SQ",null,"✓","✓","✓",{"$nulls":32},"https://projects.itrcweb.org/DNAPL-ISC_tools-selection/#Appendix_D_Tools_Descriptions.htm#Laser_Induced_Florescence"]
["Membrane Interface Probe (MIP)","QL - SQ",null,"✓","✓","✓",{"$nulls":32},"https://projects.itrcweb.org/DNAPL-ISC_tools-selection/#Appendix_D_Tools_Descriptions.htm#Membrane_Interface_Probe_Direct_Push"]
["Hydrosparge (CPT)","Q - SQ",null,"✓",null,"✓",{"$nulls":32},"https://projects.itrcweb.org/DNAPL-ISC_tools-selection/#Appendix_D_Tools_Descriptions.htm#Hydrosparge"]
["CPT In-Situ Video Camera","SQ - Q",null,"✓","✓","✓",{"$nulls":32},"https://projects.itrcweb.org/DNAPL-ISC_tools-selection/#Appendix_D_Tools_Descriptions.htm#CPT_In_Situ_Video_Camera"]
["Raman Spectroscopy","Q - SQ",null,"✓","✓","✓",{"$nulls":32},"https://projects.itrcweb.org/DNAPL-ISC_tools-selection/#Appendix_D_Tools_Descriptions.htm#Raman_Spectroscopy"]
["Co-Solvent Injection/Extraction; or Precision Injection/Extraction PIX Probe","QL",null,"✓",null,"✓",{"$nulls":32},"https://projects.itrcweb.org/DNAPL-ISC_tools-selection/#Appendix_D_Tools_Descriptions.htm#Co-Solvent_Injection/Extraction_or_Precision"]
["Targost®","QL",null,"✓","✓","✓",{"$nulls":32},"https://projects.itrcweb.org/DNAPL-ISC_tools-selection/#Appendix_D_Tools_Descriptions.htm#Targost"]
["Dye LIF","SQ",null,"✓","✓","✓",{"$nulls":32},"https://projects.itrcweb.org/DNAPL-ISC_tools-selection/#Appendix_D_Tools_Descriptions.htm#Dye-LIF"]
["Discrete Groundwater Sampling & Profiling",{"$nulls":37},"https://projects.itrcweb.org/DNAPL-ISC_tools-selection/#Appendix_D_Tools_Descriptions.htm#Discrete2"]
["Screen Point (SP) 22 Groundwater Sampling Tool","Q - QL",null,"✓",null,"✓",{"$nulls":32},"https://projects.itrcweb.org/DNAPL-ISC_tools-selection/#Appendix_D_Tools_Descriptions.htm#Screen_Point_22_Groundwater"]
["Screen Point (SP) 16 Groundwater Sampling Tool","Q - QL",null,"✓",null,"✓",{"$nulls":32},"https://projects.itrcweb.org/DNAPL-ISC_tools-selection/#Appendix_D_Tools_Descriptions.htm#Screen_Point_16_Groundwater"]
["Hydraulic Profiling Tool _ Groundwater Sampler (HPT-GWS)*","Q - QL",null,"✓",null,"✓",{"$nulls":32},"https://projects.itrcweb.org/DNAPL-ISC_tools-selection/#Appendix_D_Tools_Descriptions.htm#Hydraulic_Profiling_Tool-Groundwater_Sampler"]
["Waterloo Advanced Profiling System (Waterloo APS)*","Q - QL ",null,"✓",null,"✓",{"$nulls":32},"https://projects.itrcweb.org/DNAPL-ISC_tools-selection/#Appendix_D_Tools_Descriptions.htm#Waterloo_Advanced_Profiling_System"]
["Grab well water sampler (SNAP, Hydrasleeve)","Q - SQ","✓","✓",null,"✓",{"$nulls":32},"https://projects.itrcweb.org/DNAPL-ISC_tools-selection/#Appendix_D_Tools_Descriptions.htm#Grab_Samplers_Hydrasleeve_and_Snap"]
["Accumulative Sorbent Sampler (SPMD, Gore Module, POCIS, PISCES","QL - SQ","✓","✓",null,"✓",{"$nulls":32},"https://projects.itrcweb.org/DNAPL-ISC_tools-selection/#Appendix_D_Tools_Descriptions.htm#Accumulative_Samplers"]
["Membrane Diffusion Samplers ","QL - SQ","✓","✓",null,"✓",{"$nulls":32},"https://projects.itrcweb.org/DNAPL-ISC_tools-selection/#Appendix_D_Tools_Descriptions.htm#Membrane_Diffusion_Samplers_Polyethylene"]
["FACT FluteTM","Q","✓",null,null,"✓",{"$nulls":32},"https://projects.itrcweb.org/DNAPL-ISC_tools-selection/#Appendix_D_Tools_Descriptions.htm#FACT_FLUTe"]
["Straddle packer sampling","Q","✓","✓",null,"✓",{"$nulls":32},"https://projects.itrcweb.org/DNAPL-ISC_tools-selection/#Appendix_D_Tools_Descriptions.htm#Straddle_Packer_Sampling"]
["Passive Flux Meter (emerging)","QL","✓","✓",null,"✓",{"$nulls":32},"https://projects.itrcweb.org/DNAPL-ISC_tools-selection/#Appendix_D_Tools_Descriptions.htm#Passive_Flux_Meter"]
["Hydropunch","Q - SQ",null,"✓",null,"✓",{"$nulls":32},"https://projects.itrcweb.org/DNAPL-ISC_tools-selection/#Appendix_D_Tools_Descriptions.htm#Hydropunch"]
["ZONFLO-Hydraulic sampling system","Q","✓","✓",null,"✓",{"$nulls":32},"https://projects.itrcweb.org/DNAPL-ISC_tools-selection/#Appendix_D_Tools_Descriptions.htm#ZONFLO"]
["Multilevel sampling",{"$nulls":37},"https://projects.itrcweb.org/DNAPL-ISC_tools-selection/#Appendix_D_Tools_Descriptions.htm#Multilevel_Sampling"]
["Westbay","Q","✓","✓",null,"✓",{"$nulls":32},"https://projects.itrcweb.org/DNAPL-ISC_tools-selection/#Appendix_D_Tools_Descriptions.htm#Westbay_Systems"]
["Solinist","Q","✓","✓",null,"✓",{"$nulls":32},"https://projects.itrcweb.org/DNAPL-ISC_tools-selection/#Appendix_D_Tools_Descriptions.htm#Solinist"]
["Fact Systems (FLUTe)","Q - SQ","✓","✓",null,"✓",{"$nulls":32},"https://projects.itrcweb.org/DNAPL-ISC_tools-selection/#Appendix_D_Tools_Descriptions.htm#FLUTe_Systems"]
["CMT (Continuous Multichannel Tubing)","Q","✓","✓",null,"✓",{"$nulls":32},"https://projects.itrcweb.org/DNAPL-ISC_tools-selection/#Appendix_D_Tools_Descriptions.htm#CMT_Systems"]
["DNAPL Presence",{"$nulls":37},"https://projects.itrcweb.org/DNAPL-ISC_tools-selection/#Appendix_D_Tools_Descriptions.htm#DNAPL_Presence"]
["NAPL Flute","QL","✓","✓","✓","✓",{"$nulls":32},"https://projects.itrcweb.org/DNAPL-ISC_tools-selection/#Appendix_D_Tools_Descriptions.htm#NAPL_FLUTe"]
["Dye Techniques (e.g. Sudan IV dye, Red Oil, DNAPL-Lens-Detect","QL","✓","✓","✓","✓",{"$nulls":32},"https://projects.itrcweb.org/DNAPL-ISC_tools-selection/#Appendix_D_Tools_Descriptions.htm#Dye_Techniques"]
["Ultra-violet (UV ) fluorescence","SQ","✓","✓",null,"✓",{"$nulls":32},"https://projects.itrcweb.org/DNAPL-ISC_tools-selection/#Appendix_D_Tools_Descriptions.htm#Ultraviolet_Fluorescence"]
["NAPL  Interface Probe","QL","✓","✓",null,"✓",{"$nulls":32},"https://projects.itrcweb.org/DNAPL-ISC_tools-selection/#Appendix_D_Tools_Descriptions.htm#NAPL_Interface_Probe"]
["Chemical Screening",{"$nulls":37},"https://projects.itrcweb.org/DNAPL-ISC_tools-selection/#Appendix_D_Tools_Descriptions.htm#Chemical"]
["Membrane Interface Probe (MIP)","QL - SQ","✓","✓","✓","✓",{"$nulls":32},"https://projects.itrcweb.org/DNAPL-ISC_tools-selection/#Appendix_D_Tools_Descriptions.htm#Membrane_Interface_Probe"]
["Background Fluorescence","QL - SQ","✓","✓",null,"✓",{"$nulls":32},"https://projects.itrcweb.org/DNAPL-ISC_tools-selection/#Appendix_D_Tools_Descriptions.htm#Background_Fluorescence_Analysis"]
["Colorimetric Screening (e.g. ColorTec® AQR)","SQ","✓","✓","✓","✓",{"$nulls":32},"https://projects.itrcweb.org/DNAPL-ISC_tools-selection/#Appendix_D_Tools_Descriptions.htm#Colorimetric_Screening"]
["Direct Sampling Ion trap Mass Spectrometer","Q","✓","✓","✓","✓",{"$nulls":32},"https://projects.itrcweb.org/DNAPL-ISC_tools-selection/#Appendix_D_Tools_Descriptions.htm#Direct_Sampling_Ion_Trap_Mass_Spectrometer"]
["Organic Vapor Analyzer (OVA), e.g. Photo Ionization Detector (PID), Flame Ionization Detector","SQ",null,"✓","✓","✓",{"$nulls":32},"https://projects.itrcweb.org/DNAPL-ISC_tools-selection/#Appendix_D_Tools_Descriptions.htm#Organic_Vapor_Analysis_for_Screening_Samples"]
["Environmental Molecular Diagnostics",{"$nulls":37},"https://projects.itrcweb.org/DNAPL-ISC_tools-selection/#Appendix_D_Tools_Descriptions.htm#Environm"]
["Microbial Diagnostics"]
["Flourescence In Situ Hybridization (FISH)","QL","✓","✓",null,"✓",{"$nulls":32},"https://projects.itrcweb.org/DNAPL-ISC_tools-selection/#Appendix_D_Tools_Descriptions.htm#Fluorescence_In_Situ_Hybridization"]
["Compound Specific Isotope Analysis (CSIA)","Q - SQ","✓","✓","✓","✓",{"$nulls":32},"https://projects.itrcweb.org/DNAPL-ISC_tools-selection/#Appendix_D_Tools_Descriptions.htm#Compound_Specific_Isotope_Analysis"]
["Enzyme Activity Probes (EAPs)","Q - SQ","✓","✓",null,"✓",{"$nulls":32},"https://projects.itrcweb.org/DNAPL-ISC_tools-selection/#Appendix_D_Tools_Descriptions.htm#Enzyme_Activity_Probes"]
["DNA Microarrays","Q - SQ","✓","✓",null,"✓",{"$nulls":32},"https://projects.itrcweb.org/DNAPL-ISC_tools-selection/#Appendix_D_Tools_Descriptions.htm#DNA_Microarrays"]
["Microbial Fingerprinting","QL - SQ","✓","✓",null,"✓",{"$nulls":32},"https://projects.itrcweb.org/DNAPL-ISC_tools-selection/#Appendix_D_Tools_Descriptions.htm#Microbial_Fingerprinting"]
["Polymerase Chain Reaction (PCR)","QL","✓","✓",null,"✓",{"$nulls":32},"https://projects.itrcweb.org/DNAPL-ISC_tools-selection/#Appendix_D_Tools_Descriptions.htm#Polymerase_Chain_Reaction"]
["Quantitative PCR","Q - SQ","✓","✓",null,"✓",{"$nulls":32},"https://projects.itrcweb.org/DNAPL-ISC_tools-selection/#Appendix_D_Tools_Descriptions.htm#Quantitative_Polymerase_Chain_Reaction"]
["Stable Isotope Probing (SIP)","QL - SQ","✓","✓",null,"✓",{"$nulls":32},"https://projects.itrcweb.org/DNAPL-ISC_tools-selection/#Appendix_D_Tools_Descriptions.htm#Stable_Isotopes"]
["Stable Isotope and Environmental Tracers",{"$nulls":37},"https://projects.itrcweb.org/DNAPL-ISC_tools-selection/#Appendix_D_Tools_Descriptions.htm#Stable"]
["Stable Isotope","QL","✓","✓",null,"✓",{"$nulls":32},"https://projects.itrcweb.org/DNAPL-ISC_tools-selection/#Appendix_D_Tools_Descriptions.htm#Stable_Isotopes"]
["Radioactive tracers","Q","✓","✓","✓","✓",{"$nulls":32},"https://projects.itrcweb.org/DNAPL-ISC_tools-selection/#Appendix_D_Tools_Descriptions.htm#Radioactive_Tracers"]
["Anthropogenic chemical tracers","SQ","✓","✓",null,"✓",{"$nulls":32},"https://projects.itrcweb.org/DNAPL-ISC_tools-selection/#Appendix_D_Tools_Descriptions.htm#Anthropogenic_Chemical_Tracers"]
["Accumulation tracers","QL","✓","✓",null,"✓",{"$nulls":32},"https://projects.itrcweb.org/DNAPL-ISC_tools-selection/#Appendix_D_Tools_Descriptions.htm#Accumulation_Tracers"]
["On-site Analytical",{"$nulls":37},"https://projects.itrcweb.org/DNAPL-ISC_tools-selection/#Appendix_D_Tools_Descriptions.htm#On-site_Analytical"]
["Mobile labs","Q - QL","✓","✓","✓","✓",{"$nulls":32},"https://projects.itrcweb.org/DNAPL-ISC_tools-selection/#Appendix_D_Tools_Descriptions.htm#Mobile_Laboratory"]
["Portable Gas Chromatograph","Q - SQ","✓","✓","✓","✓",{"$nulls":32},"https://projects.itrcweb.org/DNAPL-ISC_tools-selection/#Appendix_D_Tools_Descriptions.htm#Portable_Gas_Chromatograph"]
["Portable Gas Chromatograph / Mass Spectrometer","Q - SQ","✓","✓","✓","✓",{"$nulls":32},"https://projects.itrcweb.org/DNAPL-ISC_tools-selection/#Appendix_D_Tools_Descriptions.htm#Portable_Gas_Chromo_Mass_Spectrometer"]
["Quantitative = Q (Tool that provides compound-specific values in units of concentration based on traceable standards (e.g.,  μg/L, ppm, ppbv)",null,"E21",null,"E22",null,"E3",{"$nulls":10},"E4",{"$nulls":7},"E51","E52",{"$nulls":3},"E56",{"$nulls":3},"E5"]
["Semi-quantitative = SQ (Tool that provides compound-specific quantitative measurements based on traceable standards but in units other than concentrations (e.g., ng or ug) or provides measurements within a range)",null,"http://www.itrcweb.org/DNAPL-ISC_tools-selection/Content/Appendix_E._Data_Types_and_Definitions.htm?#Subsurface",null,"http://www.itrcweb.org/DNAPL-ISC_tools-selection/Content/Appendix_E._Data_Types_and_Definitions.htm?#Zones",null,"http://www.itrcweb.org/DNAPL-ISC_tools-selection/Content/Appendix_E._Data_Types_and_Definitions.htm?#Geology",{"$nulls":10},"http://www.itrcweb.org/DNAPL-ISC_tools-selection/Content/Appendix_E._Data_Types_and_Definitions.htm?#Hydrogeology",{"$nulls":7},"http://www.itrcweb.org/DNAPL-ISC_tools-selection/Content/Appendix_E._Data_Types_and_Definitions.htm?#SoilGas","http://www.itrcweb.org/DNAPL-ISC_tools-selection/Content/Appendix_E._Data_Types_and_Definitions.htm?#Groundwater",{"$nulls":3},"http://www.itrcweb.org/DNAPL-ISC_tools-selection/Content/Appendix_E._Data_Types_and_Definitions.htm?#Solid",{"$nulls":3},"http://www.itrcweb.org/DNAPL-ISC_tools-selection/Content/Appendix_E._Data_Types_and_Definitions.htm?#Chemistr"]
["Qualitative = QL  (Tool that provides an indirect measurement (e.g. LIF and PID measurements provide a relative measure of absence or presence, but are not suitable as stand-alone tools for making remedy decisions)","http://www.itrcweb.org/DNAPL-ISC_tools-selection/Content/Appendix_E._Data_Types_and_Definitions.htm?#Data","http://www.itrcweb.org/DNAPL-ISC_tools-selection/Content/Appendix_E._Data_Types_and_Definitions.htm?#Bedrock","http://www.itrcweb.org/DNAPL-ISC_tools-selection/Content/Appendix_E._Data_Types_and_Definitions.htm?#Unconsolidated","http://www.itrcweb.org/DNAPL-ISC_tools-selection/Content/Appendix_E._Data_Types_and_Definitions.htm?#Unsaturated","http://www.itrcweb.org/DNAPL-ISC_tools-selection/Content/Appendix_E._Data_Types_and_Definitions.htm?#Saturated","http://www.itrcweb.org/DNAPL-ISC_tools-selection/Content/Appendix_E._Data_Types_and_Definitions.htm?#Litholog","http://www.itrcweb.org/DNAPL-ISC_tools-selection/Content/Appendix_E._Data_Types_and_Definitions.htm?#Litholog2","http://www.itrcweb.org/DNAPL-ISC_tools-selection/Content/Appendix_E._Data_Types_and_Definitions.htm?#Porosity","http://www.itrcweb.org/DNAPL-ISC_tools-selection/Content/Appendix_E._Data_Types_and_Definitions.htm?#Permeabi","http://www.itrcweb.org/DNAPL-ISC_tools-selection/Content/Appendix_E._Data_Types_and_Definitions.htm?#Dual","http://www.itrcweb.org/DNAPL-ISC_tools-selection/Content/Appendix_E._Data_Types_and_Definitions.htm?#Faults","http://www.itrcweb.org/DNAPL-ISC_tools-selection/Content/Appendix_E._Data_Types_and_Definitions.htm?#Fracture","http://www.itrcweb.org/DNAPL-ISC_tools-selection/Content/Appendix_E._Data_Types_and_Definitions.htm?#Fracture2","http://www.itrcweb.org/DNAPL-ISC_tools-selection/Content/Appendix_E._Data_Types_and_Definitions.htm?#Fracture3","http://www.itrcweb.org/DNAPL-ISC_tools-selection/Content/Appendix_E._Data_Types_and_Definitions.htm?#Rock","http://www.itrcweb.org/DNAPL-ISC_tools-selection/Content/Appendix_E._Data_Types_and_Definitions.htm?#Mineralo","http://www.itrcweb.org/DNAPL-ISC_tools-selection/Content/Appendix_E._Data_Types_and_Definitions.htm?#Open","http://www.itrcweb.org/DNAPL-ISC_tools-selection/Content/Appendix_E._Data_Types_and_Definitions.htm?#Ambient","http://www.itrcweb.org/DNAPL-ISC_tools-selection/Content/Appendix_E._Data_Types_and_Definitions.htm?#Groundwa","http://www.itrcweb.org/DNAPL-ISC_tools-selection/Content/Appendix_E._Data_Types_and_Definitions.htm?#Fracture4","http://www.itrcweb.org/DNAPL-ISC_tools-selection/Content/Appendix_E._Data_Types_and_Definitions.htm?#Fracture5","http://www.itrcweb.org/DNAPL-ISC_tools-selection/Content/Appendix_E._Data_Types_and_Definitions.htm?#Hydrauli","http://www.itrcweb.org/DNAPL-ISC_tools-selection/Content/Appendix_E._Data_Types_and_Definitions.htm?#Hydrauli2","http://www.itrcweb.org/DNAPL-ISC_tools-selection/Content/Appendix_E._Data_Types_and_Definitions.htm?#Borehole","http://www.itrcweb.org/DNAPL-ISC_tools-selection/Content/Appendix_E._Data_Types_and_Definitions.htm?#SoilGas","http://www.itrcweb.org/DNAPL-ISC_tools-selection/Content/Appendix_E._Data_Types_and_Definitions.htm?#Geochemi",null,"http://www.itrcweb.org/DNAPL-ISC_tools-selection/Content/Appendix_E._Data_Types_and_Definitions.htm?#NAPL","http://www.itrcweb.org/DNAPL-ISC_tools-selection/Content/Appendix_E._Data_Types_and_Definitions.htm?#Contaminant2","http://www.itrcweb.org/DNAPL-ISC_tools-selection/Content/Appendix_E._Data_Types_and_Definitions.htm?#Solids","http://www.itrcweb.org/DNAPL-ISC_tools-selection/Content/Appendix_E._Data_Types_and_Definitions.htm?#Fraction","http://www.itrcweb.org/DNAPL-ISC_tools-selection/Content/Appendix_E._Data_Types_and_Definitions.htm?#Presence","http://www.itrcweb.org/DNAPL-ISC_tools-selection/Content/Appendix_E._Data_Types_and_Definitions.htm?#Contamin","http://www.itrcweb.org/DNAPL-ISC_tools-selection/Content/Appendix_E._Data_Types_and_Definitions.htm?#Microbia"]
[null,"E1","E212","E211","E221","E222","E31","E32","E33","E34","E35","E36","E37","E38","E39","E310","E311","E41","E42","E43","E44","E45","E46","E47","E48","E51","E53",null,"E54","E55","E57","E58","E59","E510","E511"]

{"sheet":"DNAPL","index":1,"n_rows":124,"n_cols":35,"rows_kept":124,"merged":[[6,0,8,0],[6,1,8,1],[6,2,7,3],[6,4,7,5],[6,6,7,16],[6,17,7,24],[6,25,6,34],[7,26,7,29],[7,30,7,34]]}
[]
[]
[]
[]
[]
[]
["Tool","Data Quality","Sub\nsurface",null,"Zones",null,"Geology",{"$nulls":10},"Hydrogeology",{"$nulls":7},"Chemistry"]
[{"$nulls":25},"Soil Gas","Groundwater",{"$nulls":3},"Solid Media"]
[null,null,"Bedrock","Unconsolidated","Unsaturated","Saturated","Lithology","Lithology Contacts","Porosity","Permeability","Dual Permeability","Faults","Fractures","Fracture Density","Fracture sets","Rock Competence","Mineralogy","Open Hole Flow","Ambient Flow","Groundwater Age","Fracture Aperture","Fracture Connectivity","Hydraulic Conductivity","Hydraulic Head","Borehole Condition","Contaminant Concentration","Geochemistry","Microbial Community","NAPL Presence","Contaminant Concentration","Geochemistry","Foc","NAPL Presence","Contaminant Concentration","Microbial Community"]
[{"$f":"HYPERLINK(Initial!C121,Initial!A4)","v":"Geophysics"}]
[{"$f":"HYPERLINK(Initial!AM5,Initial!A5)","v":"Surface Geophysics"}]
[{"$f":"HYPERLINK(Initial!AM6,Initial!A6)","v":"Ground Penetrating Radar (GPR)"},"Q - QL","✓","✓","✓","✓"]
[{"$f":"HYPERLINK(Initial!AM7,Initial!A7)","v":"High Resolution Seismic Reflection (2D or 3D) "},"Q - QL","✓","✓",null,"✓"]
[{"$f":"HYPERLINK(Initial!AM8,Initial!A8)","v":"Seismic Refraction"},"Q - QL","✓","✓","✓","✓"]
[{"$f":"HYPERLINK(Initial!AM9,Initial!A9)","v":"Multi-Channel Analyses of Surface Waves (MASW)"},"Q - QL","✓","✓","✓","✓"]
[{"$f":"HYPERLINK(Initial!AM10,Initial!A10)","v":"Electrical Resistivity Tomography (ERT) "},"QL - SQ","✓","✓","✓","✓"]
[{"$f":"HYPERLINK(Initial!AM11,Initial!A11)","v":"Very Low Frequency (VLF)"},"QL","✓","✓","✓","✓"]
[{"$f":"HYPERLINK(Initial!AM12,Initial!A12)","v":"ElectroMagnetic (EM) Conductivity"},"QL","✓","✓","✓","✓"]
[{"$f":"HYPERLINK(Initial!AM13,Initial!A13)","v":"Downhole Testing"}]
[{"$f":"HYPERLINK(Initial!AM14,Initial!A14)","v":"Magnetometric Resistivity"},"QL","✓","✓",null,"✓"]
[{"$f":"HYPERLINK(Initial!AM15,Initial!A15)","v":"Induction Resistivity (Conductivity Logging)"},"Q - QL","✓","✓","✓","✓"]
[{"$f":"HYPERLINK(Initial!AM16,Initial!A16)","v":"Resistivity (Elog)"},"QL - SQ","✓",null,null,"✓"]
[{"$f":"HYPERLINK(Initial!AM17,Initial!A17)","v":"GPR Cross-Well Tomography"},"Q - QL","✓","✓","✓","✓"]
[{"$f":"HYPERLINK(Initial!AM18,Initial!A18)","v":"Optical Televiewer"},"Q - QL","✓","✓","✓","✓"]
[{"$f":"HYPERLINK(Initial!AM19,Initial!A19)","v":"Acoustic Televiewer"},"Q - QL","✓",null,null,"✓"]
[{"$f":"HYPERLINK(Initial!AM20,Initial!A20)","v":"Natural Gamma Log"},"Q - QL","✓","✓","✓","✓"]
[{"$f":"HYPERLINK(Initial!AM21,Initial!A21)","v":"Neutron (porosity) Logging"},"Q - QL","✓","✓",null,"✓"]
[{"$f":"HYPERLINK(Initial!AM22,Initial!A22)","v":"Nuclear Magnetic Resonance Logging"},"Q - QL","✓","✓","✓","✓"]
[{"$f":"HYPERLINK(Initial!AM23,Initial!A23)","v":"Video Log"},"QL - SQ","✓","✓","✓","✓"]
[{"$f":"HYPERLINK(Initial!AM24,Initial!A24)","v":"Caliper Log"},"Q - QL","✓","✓","✓","✓"]
[{"$f":"HYPERLINK(Initial!AM25,Initial!A25)","v":"Temperature Profiling"},"Q - QL","✓","✓",null,"✓"]
[{"$f":"HYPERLINK(Initial!AM26,Initial!A26)","v":"Full Wave Form Seismic"},"Q - QL","✓",null,null,"✓"]
[{"$f":"HYPERLINK(Initial!AM27,Initial!A27)","v":"Hydraulic Testing"}]
[{"$f":"HYPERLINK(Initial!AM28,Initial!A28)","v":"Single well tests"}]
[{"$f":"HYPERLINK(Initial!AM29,Initial!A29)","v":"Packer Testing"},"Q - SQ","✓","✓",null,"✓"]
[{"$f":"HYPERLINK(Initial!AM30,Initial!A30)","v":"FLUTe™  Profiling"},"Q - SQ","✓","✓",null,"✓"]
[{"$f":"HYPERLINK(Initial!AM31,Initial!A31)","v":"Borehole Dilution"},"Q - SQ","✓","✓",null,"✓"]
[{"$f":"HYPERLINK(Initial!AM32,Initial!A32)","v":"Flow Metering"},"Q - SQ","✓","✓",null,"✓"]
[{"$f":"HYPERLINK(Initial!AM33,Initial!A33)","v":"Partitioning Interwell Tracer Test (PITT)"},"Q - SQ","✓","✓","✓","✓"]
[{"$f":"HYPERLINK(Initial!AM34,Initial!A34)","v":"Pumping and Recovery Tests"},"Q - SQ","✓","✓",null,"✓"]
[{"$f":"HYPERLINK(Initial!AM35,Initial!A35)","v":"Slug Tests "},"Q - SQ","✓","✓",null,"✓"]
[{"$f":"HYPERLINK(Initial!AM36,Initial!A36)","v":"Constant Head Step Test"},"Q - SQ","✓","✓",null,"✓"]
[{"$f":"HYPERLINK(Initial!AM37,Initial!A37)","v":"Cross Borehole Testing"}]
[{"$f":"HYPERLINK(Initial!AM38,Initial!A38)","v":"Tracer testing"},"Q - SQ","✓","✓",null,"✓"]
[{"$f":"HYPERLINK(Initial!AM39,Initial!A39)","v":"Hydraulic Tomography"},"Q - SQ","✓","✓",null,"✓"]
[{"$f":"HYPERLINK(Initial!AM40,Initial!A40)","v":"Flow Metering"},"Q - SQ","✓","✓",null,"✓"]
[{"$f":"HYPERLINK(Initial!AM41,Initial!A41)","v":"Pumping and Recovery Tests"},"Q - SQ","✓","✓",null,"✓"]
[{"$f":"HYPERLINK(Initial!AM42,Initial!A42)","v":"Slug Tests "},"Q - SQ","✓","✓",null,"✓"]
[{"$f":"HYPERLINK(Initial!AM43,Initial!A43)","v":"Vapor and Soil Gas Sampling"}]
[{"$f":"HYPERLINK(Initial!AM44,Initial!A44)","v":"Passive soil gas surveys"},"SQ","✓","✓","✓"]
[{"$f":"HYPERLINK(Initial!AM45,Initial!A45)","v":"Active soil gas surveys"},"Q - SQ","✓","✓","✓"]
[{"$f":"HYPERLINK(Initial!AM46,Initial!A46)","v":"Solid Media Sampling and Analysis Methods"}]
[{"$f":"HYPERLINK(Initial!AM47,Initial!A47)","v":"Solid Media Sampling Methods"}]
[{"$f":"HYPERLINK(Initial!AM48,Initial!A48)","v":"Split Spoon Sampler"},"Q - QL",null,"✓","✓","✓"]
[{"$f":"HYPERLINK(Initial!AM49,Initial!A49)","v":"Single Tube Solid Barrel Sampler"},"Q - QL",null,"✓","✓","✓"]
[{"$f":"HYPERLINK(Initial!AM50,Initial!A50)","v":"Dual Tube Sampler"},"Q - QL",null,"✓","✓","✓"]
[{"$f":"HYPERLINK(Initial!AM51,Initial!A51)","v":"Rock Coring"},"Q - QL","✓",null,null,"✓"]
[{"$f":"HYPERLINK(Initial!AM52,Initial!A52)","v":"Solid Media Evaluation and Testing Methods"}]
[{"$f":"HYPERLINK(Initial!AM53,Initial!A53)","v":"Core Logging"},"Q - QL","✓","✓","✓","✓"]
[{"$f":"HYPERLINK(Initial!AM54,Initial!A54)","v":"Percent Recovery/Rock Quality Designation"},"Q - QL","✓","✓","✓","✓"]
[{"$f":"HYPERLINK(Initial!AM55,Initial!A55)","v":"Contaminant Analysis"},"Q - QL","✓","✓","✓","✓"]
[{"$f":"HYPERLINK(Initial!AM56,Initial!A56)","v":"Geochemical Composition and Mineralogy"},"Q - QL","✓","✓","✓","✓"]
[{"$f":"HYPERLINK(Initial!AM57,Initial!A57)","v":"Physical Properties"},"Q - QL","✓","✓","✓","✓"]
[{"$f":"HYPERLINK(Initial!AM58,Initial!A58)","v":"Molecular/Microbial Diagnostics"},"QL - SQ","✓","✓",null,"✓"]
[{"$f":"HYPERLINK(Initial!AM59,Initial!A59)","v":"Direct Push Logging (In-Situ)"}]
[{"$f":"HYPERLINK(Initial!AM60,Initial!A60)","v":"Hydraulic Profiling Tool (HPT)"},"QL - SQ",null,"✓","✓","✓"]
[{"$f":"HYPERLINK(Initial!AM61,Initial!A61)","v":"Electrical Conductivity (EC) Logging "},"QL",null,"✓","✓","✓"]
[{"$f":"HYPERLINK(Initial!AM62,Initial!A62)","v":"Cone Penetrometer Testing (CPT &CPTu)"},"Q - SQ",null,"✓","✓","✓"]
[{"$f":"HYPERLINK(Initial!AM63,Initial!A63)","v":"Laser Induced Fluoresence (LIF)"},"SQ",null,"✓","✓","✓"]
[{"$f":"HYPERLINK(Initial!AM64,Initial!A64)","v":"Membrane Interface Probe (MIP)"},"QL - SQ",null,"✓","✓","✓"]
[{"$f":"HYPERLINK(Initial!AM65,Initial!A65)","v":"Hydrosparge (CPT)"},"Q - SQ",null,"✓",null,"✓"]
[{"$f":"HYPERLINK(Initial!AM66,Initial!A66)","v":"CPT In-Situ Video Camera"},"SQ - Q",null,"✓","✓","✓"]
[{"$f":"HYPERLINK(Initial!AM67,Initial!A67)","v":"Raman Spectroscopy"},"Q - SQ",null,"✓","✓","✓"]
[{"$f":"HYPERLINK(Initial!AM68,Initial!A68)","v":"Co-Solvent Injection/Extraction; or Precision Injection/Extraction PIX Probe"},"QL",null,"✓",null,"✓"]
[{"$f":"HYPERLINK(Initial!AM69,Initial!A69)","v":"Targost®"},"QL",null,"✓","✓","✓"]
[{"$f":"HYPERLINK(Initial!AM70,Initial!A70)","v":"Dye LIF"},"SQ",null,"✓","✓","✓"]
[{"$f":"HYPERLINK(Initial!AM71,Initial!A71)","v":"Discrete Groundwater Sampling & Profiling"}]
[{"$f":"HYPERLINK(Initial!AM72,Initial!A72)","v":"Screen Point (SP) 22 Groundwater Sampling Tool"},"Q - QL",null,"✓",null,"✓"]
[{"$f":"HYPERLINK(Initial!AM73,Initial!A73)","v":"Screen Point (SP) 16 Groundwater Sampling Tool"},"Q - QL",null,"✓",null,"✓"]
[{"$f":"HYPERLINK(Initial!AM74,Initial!A74)","v":"Hydraulic Profiling Tool _ Groundwater Sampler (HPT-GWS)*"},"Q - QL",null,"✓",null,"✓"]
[{"$f":"HYPERLINK(Initial!AM75,Initial!A75)","v":"Waterloo Advanced Profiling System (Waterloo APS)*"},"Q - QL ",null,"✓",null,"✓"]
[{"$f":"HYPERLINK(Initial!AM76,Initial!A76)","v":"Grab well water sampler (SNAP, Hydrasleeve)"},"Q - SQ","✓","✓",null,"✓"]
[{"$f":"HYPERLINK(Initial!AM77,Initial!A77)","v":"Accumulative Sorbent Sampler (SPMD, Gore Module, POCIS, PISCES"},"QL - SQ","✓","✓",null,"✓"]
[{"$f":"HYPERLINK(Initial!AM78,Initial!A78)","v":"Membrane Diffusion Samplers "},"QL - SQ","✓","✓",null,"✓"]
[{"$f":"HYPERLINK(Initial!AM79,Initial!A79)","v":"FACT FluteTM"},"Q","✓",null,null,"✓"]
[{"$f":"HYPERLINK(Initial!AM80,Initial!A80)","v":"Straddle packer sampling"},"Q","✓","✓",null,"✓"]
[{"$f":"HYPERLINK(Initial!AM81,Initial!A81)","v":"Passive Flux Meter (emerging)"},"QL","✓","✓",null,"✓"]
[{"$f":"HYPERLINK(Initial!AM82,Initial!A82)","v":"Hydropunch"},"Q - SQ",null,"✓",null,"✓"]
[{"$f":"HYPERLINK(Initial!AM83,Initial!A83)","v":"ZONFLO-Hydraulic sampling system"},"Q","✓","✓",null,"✓"]
[{"$f":"HYPERLINK(Initial!AM84,Initial!A84)","v":"Multilevel sampling"}]
[{"$f":"HYPERLINK(Initial!AM85,Initial!A85)","v":"Westbay"},"Q","✓","✓",null,"✓"]
[{"$f":"HYPERLINK(Initial!AM86,Initial!A86)","v":"Solinist"},"Q","✓","✓",null,"✓"]
[{"$f":"HYPERLINK(Initial!AM87,Initial!A87)","v":"Fact Systems (FLUTe)"},"Q - SQ","✓","✓",null,"✓"]
[{"$f":"HYPERLINK(Initial!AM88,Initial!A88)","v":"CMT (Continuous Multichannel Tubing)"},"Q","✓","✓",null,"✓"]
[{"$f":"HYPERLINK(Initial!AM89,Initial!A89)","v":"DNAPL Presence"}]
[{"$f":"HYPERLINK(Initial!AM90,Initial!A90)","v":"NAPL Flute"},"QL","✓","✓","✓","✓"]
[{"$f":"HYPERLINK(Initial!AM91,Initial!A91)","v":"Dye Techniques (e.g. Sudan IV dye, Red Oil, DNAPL-Lens-Detect"},"QL","✓","✓","✓","✓"]
[{"$f":"HYPERLINK(Initial!AM92,Initial!A92)","v":"Ultra-violet (UV ) fluorescence"},"SQ","✓","✓",null,"✓"]
[{"$f":"HYPERLINK(Initial!AM93,Initial!A93)","v":"NAPL  Interface Probe"},"QL","✓","✓",null,"✓"]
[{"$f":"HYPERLINK(Initial!AM94,Initial!A94)","v":"Chemical Screening"}]
[{"$f":"HYPERLINK(Initial!AM95,Initial!A95)","v":"Membrane Interface Probe (MIP)"},"QL - SQ","✓","✓","✓","✓"]
[{"$f":"HYPERLINK(Initial!AM96,Initial!A96)","v":"Background Fluorescence"},"QL - SQ","✓","✓",null,"✓"]
[{"$f":"HYPERLINK(Initial!AM97,Initial!A97)","v":"Colorimetric Screening (e.g. ColorTec® AQR)"},"SQ","✓","✓","✓","✓"]
[{"$f":"HYPERLINK(Initial!AM98,Initial!A98)","v":"Direct Sampling Ion trap Mass Spectrometer"},"Q","✓","✓","✓","✓"]
[{"$f":"HYPERLINK(Initial!AM99,Initial!A99)","v":"Organic Vapor Analyzer (OVA), e.g. Photo Ionization Detector (PID), Flame Ionization Detector"},"SQ",null,"✓","✓","✓"]
[{"$f":"HYPERLINK(Initial!AM100,Initial!A100)","v":"Environmental Molecular Diagnostics"}]
[{"$f":"HYPERLINK(Initial!AM101,Initial!A101)","v":"Microbial Diagnostics"}]
[{"$f":"HYPERLINK(Initial!AM102,Initial!A102)","v":"Flourescence In Situ Hybridization (FISH)"},"QL","✓","✓",null,"✓"]
[{"$f":"HYPERLINK(Initial!AM103,Initial!A103)","v":"Compound Specific Isotope Analysis (CSIA)"},"Q - SQ","✓","✓","✓","✓"]
[{"$f":"HYPERLINK(Initial!AM104,Initial!A104)","v":"Enzyme Activity Probes (EAPs)"},"Q - SQ","✓","✓",null,"✓"]
[{"$f":"HYPERLINK(Initial!AM105,Initial!A105)","v":"DNA Microarrays"},"Q - SQ","✓","✓",null,"✓"]
[{"$f":"HYPERLINK(Initial!AM106,Initial!A106)","v":"Microbial Fingerprinting"},"QL - SQ","✓","✓",null,"✓"]
[{"$f":"HYPERLINK(Initial!AM107,Initial!A107)","v":"Polymerase Chain Reaction (PCR)"},"QL","✓","✓",null,"✓"]
[{"$f":"HYPERLINK(Initial!AM108,Initial!A108)","v":"Quantitative PCR"},"Q","✓","✓",null,"✓"]
[{"$f":"HYPERLINK(Initial!AM109,Initial!A109)","v":"Stable Isotope Probing (SIP)"},"QL - SQ","✓","✓",null,"✓"]
[{"$f":"HYPERLINK(Initial!AM110,Initial!A110)","v":"Stable Isotope and Environmental Tracers"}]
[{"$f":"HYPERLINK(Initial!AM111,Initial!A111)","v":"Stable Isotope"},"QL","✓","✓",null,"✓"]
[{"$f":"HYPERLINK(Initial!AM112,Initial!A112)","v":"Radioactive tracers"},"Q - SQ","✓","✓","✓","✓"]
[{"$f":"HYPERLINK(Initial!AM113,Initial!A113)","v":"Anthropogenic chemical tracers"},"SQ","✓","✓",null,"✓"]
[{"$f":"HYPERLINK(Initial!AM114,Initial!A114)","v":"Accumulation tracers"},"QL","✓","✓",null,"✓"]
[{"$f":"HYPERLINK(Initial!AM115,Initial!A115)","v":"On-site Analytical"}]
[{"$f":"HYPERLINK(Initial!AM116,Initial!A116)","v":"Mobile labs"},"Q - QL","✓","✓","✓","✓"]
[{"$f":"HYPERLINK(Initial!AM117,Initial!A117)","v":"Portable Gas Chromatograph"},"Q - SQ","✓","✓","✓","✓"]
[{"$f":"HYPERLINK(Initial!AM118,Initial!A118)","v":"Portable Gas Chromatograph / Mass Spectrometer"},"Q - SQ","✓","✓","✓","✓"]